bitfinex/quotes_ETHUSD_20251026
["timestamp","ask_amount","ask_price","bid_price","bid_amount"]
[1761479176005,6.36363125,4041.2,4041.1,0.88479318]
[1761479176205,7.76919873,4041.2,4041.1,0.88479318]
[1761479176571,6.64262406,4041.2,4041.1,0.8676051]
[1761479176775,0.50688,4041.0,4040.7,0.002]
[1761479176975,0.73783196,4040.8,4040.7,0.002]
[1761479177178,1.26427602,4040.8,4039.3,0.0171738]
[1761479177407,0.50688,4039.3,4035.9,0.2152]
[1761479177913,0.65864371,4039.0,4036.1,0.4545]
[1761479178112,0.50688,4039.1,4036.8,0.4545]
[1761479178409,0.69328,4039.1,4036.8,0.4545]
[1761479178615,0.69328,4039.1,4035.9,0.2152]
[1761479178616,0.50688,4038.9,4035.9,0.2152]
[1761479178913,0.50688,4038.9,4035.5,0.4545]
[1761479178914,1.16552371,4038.9,4035.5,0.4545]
[1761479179113,0.50688,4038.7,4035.2,0.2223]
[1761479179300,0.1864,4038.8,4035.4,0.02478069]
[1761479179612,0.124,4037.5,4036.7,0.124]
[1761479179917,0.50688,4037.8,4035.2,0.2223]
[1761479180112,3.835,4037.7,4035.4,0.4545]
[1761479180619,0.1864,4037.6,4034.4,0.4545]
[1761479180907,0.50688,4037.5,4034.4,0.4545]
[1761479181308,0.69328,4037.5,4034.4,0.4545]
[1761479182009,3.64228,4037.5,4034.4,0.4545]
[1761479182412,5.19748,4037.5,4033.6,0.2152]
[1761479182713,5.95260834,4037.5,4033.8,0.2152]
[1761479182913,3.43130009,4037.5,4033.8,0.2152]
[1761479183119,2.26577638,4037.5,4035.3,0.2924]
[1761479183416,4.24435196,4037.5,4035.3,0.2924]
[1761479183614,4.24435196,4037.5,4035.3,0.0772]
[1761479183993,0.1864,4037.5,4035.5,0.6697]
[1761479184289,0.87819161,4039.0,4035.5,0.2152]
[1761479184290,1.18211494,4039.0,4035.5,0.2152]
[1761479184492,2.25695218,4040.7,4037.0,0.4545]
[1761479184493,0.1864,4038.9,4037.0,0.4545]
[1761479184891,0.46215196,4040.0,4035.7,0.02477884]
[1761479185211,0.2312,4040.0,4037.5,0.4545]
[1761479185378,0.2312,4040.0,4037.6,0.2152]
[1761479185583,0.87704371,4041.7,4037.6,0.2152]
[1761479185584,0.2308,4040.4,4037.6,0.2152]
[1761479185782,0.1868,4040.9,4037.6,0.2152]
[1761479185783,0.1868,4040.9,4037.7,0.4545]
[1761479185995,0.2303,4040.8,4037.7,0.4545]
[1761479186196,0.467,4040.7,4037.7,0.4545]
[1761479186408,0.6543,4040.7,4037.7,0.4545]
[1761479186721,1.6073,4040.6,4037.7,0.4545]
[1761479186917,0.1873,4040.6,4037.7,0.4545]
[1761479187320,0.53,4040.5,4037.7,0.4545]
[1761479187711,0.1873,4040.6,4037.7,0.4545]
[1761479188198,7.9962,4040.5,4037.6,0.2152]
[1761479188522,3.83,4040.4,4037.6,0.2152]
[1761479188723,0.1873,4040.2,4037.6,0.2152]
[1761479188923,2.618,4040.0,4037.6,0.2152]
[1761479189139,0.50688,4039.7,4036.9,0.002]
[1761479189420,2.618,4039.4,4036.9,0.002]
[1761479189631,0.2312,4037.5,4036.9,0.002]
[1761479189804,0.2312,4037.5,4034.0,0.002]
[1761479189805,3.12488,4037.3,4034.2,0.2152]
[1761479190231,2.618,4036.8,4034.2,0.2152]
[1761479190618,1.5552,4036.5,4034.0,0.002]
[1761479190832,2.618,4036.4,4034.0,0.002]
[1761479191034,6.459,4036.3,4034.0,0.002]
[1761479191528,0.1747,4036.2,4034.0,0.002]
[1761479191699,0.1747,4036.9,4034.5,0.4545]
[1761479191900,1.75638322,4039.2,4034.3,0.2152]
[1761479191901,0.1747,4037.4,4034.6,0.0247856]
[1761479192121,0.1747,4037.4,4035.4,0.4545]
[1761479192308,0.1747,4037.4,4036.9,0.002]
[1761479193705,0.1747,4038.0,4036.9,0.002]
[1761479193904,0.4054,4038.0,4037.8,1.625]
[1761479194424,0.1743,4038.0,4037.8,1.625]
[1761479194624,0.2327,4039.4,4037.8,1.7875]
[1761479194834,0.2327,4039.4,4037.9,0.4545]
[1761479194835,0.001,4039.4,4037.9,0.4545]
[1761479196113,0.1748,4039.3,4037.8,1.625]
[1761479197212,3.12488,4039.2,4037.8,1.625]
[1761479197511,3.14347197,4039.1,4037.8,1.625]
[1761479197860,0.52547197,4039.0,4037.8,1.625]
[1761479198006,4.1732,4038.6,4037.8,1.625]
[1761479198346,1.5552,4038.4,4037.8,1.625]
[1761479198504,2.08067197,4038.4,4037.8,1.625]
[1761479198709,0.1743,4038.3,4037.8,1.625]
[1761479198910,1.5552,4038.2,4037.8,1.625]
[1761479199139,0.52547197,4038.2,4037.8,1.625]
[1761479199359,0.83294371,4038.1,4037.8,1.625]
[1761479199537,2.618,4037.9,4037.8,1.625]
[1761479199846,9.82419568,4037.9,4037.8,1.625]
[1761479200141,9.44680393,4037.9,4037.8,0.28734177]
[1761479200341,9.44680393,4037.9,4036.9,0.002]
[1761479200342,0.50688,4037.0,4036.9,0.002]
[1761479200564,3.35583196,4036.8,4035.3,0.002]
[1761479200850,0.1823,4035.4,4035.3,0.002]
[1761479201013,0.52547197,4036.0,4035.3,0.002]
[1761479201210,0.50688,4036.0,4035.3,0.002]
[1761479201421,0.1508,4035.9,4035.3,0.002]
[1761479201648,3.843,4035.8,4035.3,0.002]
[1761479201844,0.52547197,4035.7,4035.3,0.002]
[1761479202114,3.839,4035.6,4035.3,0.002]
[1761479202344,0.3857,4036.1,4035.3,0.002]
[1761479202512,3.837,4036.1,4035.3,0.002]
[1761479202716,4.36745059,4036.0,4035.3,0.002]
[1761479202912,0.66054531,4036.5,4035.3,0.002]
[1761479203119,3.837,4036.8,4035.3,0.002]
[1761479203435,0.50688,4036.5,4035.3,0.002]
[1761479203636,0.66054531,4036.2,4035.3,0.002]
[1761479203844,0.66054531,4036.3,4035.3,0.002]
[1761479204051,1.5552,4036.1,4035.3,0.002]
[1761479204354,2.74418443,4036.1,4035.3,0.002]
[1761479204558,0.52843912,4036.1,4035.3,0.002]
[1761479204769,0.66054531,4036.3,4035.3,0.002]
[1761479204936,0.66054531,4036.6,4035.3,0.002]
[1761479205327,3.831,4036.5,4035.3,0.002]
[1761479205525,0.52843912,4036.4,4035.3,0.002]
[1761479205833,0.66054531,4036.6,4035.3,0.002]
[1761479206572,3.827,4036.7,4035.3,0.002]
[1761479206864,0.52843912,4036.6,4035.3,0.002]
[1761479207264,0.88072708,4037.0,4035.3,0.4689]
[1761479207265,0.66054531,4036.7,4035.3,0.4689]
[1761479207467,2.21574531,4036.8,4035.3,0.4689]
[1761479207663,2.74418443,4036.8,4035.3,0.4689]
[1761479207963,0.52843912,4036.7,4035.3,0.4689]
[1761479208456,0.52935534,4037.1,4035.3,0.4689]
[1761479208657,0.52935534,4037.6,4036.6,0.2348]
[1761479208865,0.66054531,4038.2,4036.6,0.2348]
[1761479209053,0.52935534,4038.2,4036.7,0.4669]
[1761479209253,4.47954531,4038.4,4036.7,0.4669]
[1761479209450,2.74510065,4038.3,4036.7,0.4669]
[1761479209626,0.52935534,4038.2,4036.7,0.4669]
[1761479210025,0.124,4037.0,4036.7,0.4669]
[1761479210571,0.124,4037.0,4036.6,0.2348]
[1761479210727,2.74510065,4038.4,4036.0,0.7017]
[1761479210728,0.124,4036.7,4036.0,0.7017]
[1761479211129,0.124,4036.7,4036.1,0.4669]
[1761479211567,0.124,4036.2,4036.0,0.2348]
[1761479211872,0.124,4036.2,4035.3,0.002]
[1761479212049,1.6654,4037.4,4035.3,0.002]
[1761479212050,0.124,4035.6,4035.3,0.002]
[1761479212769,0.124,4035.6,4034.8,0.4537]
[1761479213062,0.124,4035.6,4034.8,0.124]
[1761479213466,2.618,4036.7,4033.5,0.002]
[1761479213634,6.5703,4036.9,4033.5,0.02679236]
[1761479213966,0.124,4035.4,4034.8,0.124]
[1761479214271,0.37642881,4035.3,4033.5,0.002]
[1761479214569,0.2349,4035.4,4033.7,0.0939]
[1761479214954,0.52933915,4035.4,4033.7,0.0939]
[1761479215147,1.11562708,4036.0,4034.0,0.4689]
[1761479215148,4.72444531,4036.0,4034.0,0.4689]
[1761479215342,0.52933915,4035.9,4034.0,0.4689]
[1761479215737,2.8529,4036.0,4034.0,0.4689]
[1761479215935,0.52933915,4035.9,4034.0,0.4689]
[1761479216142,0.52933915,4036.1,4034.0,0.4689]
[1761479216370,1.18988446,4036.5,4034.0,0.4689]
[1761479216666,0.52933915,4036.5,4034.0,0.4689]
[1761479217175,1.18988446,4036.5,4034.0,0.4689]
[1761479217478,0.66054531,4036.4,4034.0,0.4689]
[1761479217661,3.27854531,4036.3,4034.0,0.4689]
[1761479217866,3.27854531,4036.1,4034.0,0.4689]
[1761479218063,3.27854531,4036.1,4033.5,0.002]
[1761479218064,0.2349,4034.1,4033.5,0.002]
[1761479218262,2.618,4033.8,4033.5,0.002]
[1761479218465,0.2349,4034.6,4033.5,0.002]
[1761479218774,0.66054531,4034.4,4031.6,0.4669]
[1761479218954,3.707,4034.3,4031.6,0.4669]
[1761479219155,0.53087526,4034.2,4031.6,0.4669]
[1761479219375,2.618,4034.1,4031.6,0.4669]
[1761479219675,0.96887526,4034.2,4031.6,0.4669]
[1761479219676,3.14887526,4034.0,4031.6,0.4669]
[1761479219876,2.618,4033.8,4031.6,0.4669]
[1761479220090,3.14887526,4033.7,4031.6,0.4669]
[1761479220288,2.618,4033.6,4031.6,0.4669]
[1761479220491,0.438,4034.0,4031.6,0.4669]
[1761479220492,3.14863101,4033.5,4031.6,0.4669]
[1761479220788,2.618,4033.5,4031.6,0.4669]
[1761479221888,1.5552,4033.8,4031.6,0.4669]
[1761479222102,0.53015241,4033.8,4031.6,0.4669]
[1761479222267,0.53015241,4034.2,4031.6,0.4669]
[1761479222583,0.4298,4034.1,4031.6,0.4669]
[1761479223154,0.4298,4034.1,4031.4,0.1174]
[1761479223373,2.21574531,4033.9,4031.4,0.1174]
[1761479223709,0.66054531,4033.8,4031.4,0.5455]
[1761479223911,0.50688,4033.7,4031.4,0.5455]
[1761479224113,5.34062531,4033.5,4030.8,0.1174]
[1761479224278,0.53015241,4033.4,4030.8,0.1174]
[1761479224620,1.16742531,4033.2,4030.8,0.1174]
[1761479224820,1.16742531,4033.2,4030.4,0.2152]
[1761479225112,0.50688,4033.0,4030.5,0.4281]
[1761479225477,0.4298,4032.9,4030.5,0.4281]
[1761479226608,0.6599,4033.5,4030.6,0.0248102]
[1761479226775,0.52887716,4033.6,4030.8,0.50688]
[1761479226983,0.4298,4034.2,4030.8,0.53168897]
[1761479227199,0.4298,4034.2,4031.0,0.50688]
[1761479227699,0.4298,4034.2,4031.2,0.50688]
[1761479227921,0.76371195,4034.6,4031.2,0.50688]
[1761479228122,0.76371195,4034.6,4030.4,0.2152]
[1761479228123,0.2349,4034.6,4031.4,0.50688]
[1761479228296,0.4298,4034.5,4031.6,0.50688]
[1761479228505,0.4298,4034.5,4031.8,0.50688]
[1761479228906,0.4298,4034.5,4031.9,0.4388]
[1761479232604,0.2349,4034.6,4032.0,0.53168158]
[1761479232825,0.4487,4035.1,4032.0,0.53168158]
[1761479233133,0.4487,4035.1,4032.2,0.50688]
[1761479233355,3.0667,4035.1,4032.2,0.50688]
[1761479233502,0.4487,4035.0,4032.3,0.4388]
[1761479234036,4.1732,4034.9,4032.3,0.4388]
[1761479234541,0.124,4033.2,4032.7,0.124]
[1761479235034,0.124,4033.2,4032.8,0.4388]
[1761479235234,0.4487,4034.9,4032.8,0.4388]
[1761479235536,0.4487,4034.8,4032.8,0.4388]
[1761479236505,0.2301,4035.2,4032.8,0.4388]
[1761479237615,0.2301,4035.2,4032.9,0.50688]
[1761479238128,0.6788,4035.2,4033.0,0.4388]
[1761479238333,0.2239,4035.6,4033.0,0.4388]
[1761479238730,0.2239,4035.6,4033.1,0.50688]
[1761479238930,0.66054531,4036.4,4033.2,0.0247942]
[1761479238931,0.52907995,4036.3,4033.2,0.0247942]
[1761479239239,0.4487,4036.4,4033.4,0.50688]
[1761479239618,0.4487,4036.4,4033.6,0.50688]
[1761479239822,0.4487,4036.4,4033.7,0.02479113]
[1761479240030,0.12931333,4036.8,4033.8,0.50688]
[1761479240031,0.52907995,4036.8,4033.8,0.50688]
[1761479240231,0.4487,4036.5,4033.7,0.4388]
[1761479241007,0.4487,4036.5,4033.8,0.50688]
[1761479241507,0.4487,4036.5,4033.9,0.4388]
[1761479243448,0.52907995,4036.7,4034.0,0.50688]
[1761479243663,0.6726,4036.6,4034.2,0.50688]
[1761479243835,0.6726,4036.6,4034.3,0.145256]
[1761479244038,0.4487,4036.5,4034.3,0.584056]
[1761479244240,0.4487,4036.5,4032.2,1.493]
[1761479244241,0.2239,4034.4,4033.2,0.1633]
[1761479245233,0.124,4033.4,4033.2,0.1633]
[1761479245560,0.124,4033.4,4032.8,0.1633]
[1761479246282,0.124,4033.1,4032.8,0.1633]
[1761479246483,0.6726,4034.4,4032.8,0.6021]
[1761479246681,0.124,4033.4,4032.9,0.124]
[1761479246981,0.124,4033.4,4032.8,0.1633]
[1761479247549,0.124,4033.4,4032.8,0.6021]
[1761479247749,0.124,4033.7,4033.1,0.124]
[1761479248869,0.124,4033.2,4032.6,0.002]
[1761479249241,0.124,4032.7,4032.6,0.002]
[1761479250962,3.1907,4032.7,4032.6,0.002]
[1761479251166,4.7459,4032.7,4032.6,0.002]
[1761479251546,5.27735928,4032.7,4030.7,0.124]
[1761479251783,0.124,4031.3,4030.7,0.124]
[1761479253564,0.124,4031.3,4031.0,0.4408]
[1761479253957,0.124,4031.7,4031.3,0.50688]
[1761479254275,0.124,4031.7,4031.2,0.124]
[1761479254484,0.4487,4033.2,4031.6,0.1194]
[1761479254655,0.124,4032.2,4031.6,0.2434]
[1761479254985,0.124,4032.2,4031.6,0.124]
[1761479255408,0.4487,4033.6,4031.7,0.50688]
[1761479255610,0.124,4032.7,4031.8,0.02480281]
[1761479255893,0.124,4032.9,4032.2,0.50688]
[1761479256193,0.124,4033.4,4032.8,0.79418]
[1761479256884,0.124,4033.4,4032.8,0.1633]
[1761479257253,0.124,4033.4,4032.3,0.4388]
[1761479257254,0.2239,4033.8,4031.5,0.1194]
[1761479257457,0.124,4032.5,4032.0,0.124]
[1761479258154,0.2239,4033.8,4032.1,0.94568]
[1761479258355,0.124,4033.1,4032.4,0.124]
[1761479258551,0.124,4033.1,4032.5,0.50688]
[1761479258768,0.124,4033.1,4033.0,0.1633]
[1761479258964,0.4595,4034.7,4033.0,0.1633]
[1761479259174,0.124,4033.4,4033.0,0.1633]
[1761479259572,0.124,4033.4,4033.0,0.6328]
[1761479259779,0.124,4033.6,4033.1,0.50688]
[1761479259979,0.124,4033.6,4033.1,0.97638]
[1761479260388,0.124,4033.6,4033.2,0.4695]
[1761479260965,0.124,4033.6,4033.1,0.633248]
[1761479261886,0.124,4033.6,4032.9,0.124]
[1761479262282,0.124,4033.6,4033.0,0.97638]
[1761479262598,0.124,4033.8,4033.3,0.124]
[1761479263094,0.124,4033.8,4033.1,0.124]
[1761479263892,0.124,4033.8,4031.5,0.1194]
[1761479263893,0.4595,4033.7,4032.2,0.1633]
[1761479264097,0.4595,4033.7,4031.1,0.1194]
[1761479264282,0.4595,4033.7,4031.1,0.5889]
[1761479264664,0.4595,4033.7,4031.2,0.4695]
[1761479265169,0.4595,4033.7,4031.3,0.50688]
[1761479265677,0.4595,4033.7,4031.5,0.50688]
[1761479265993,0.4595,4033.7,4031.1,0.1194]
[1761479265994,0.4595,4034.2,4031.7,0.50688]
[1761479266196,0.4595,4034.2,4031.6,0.4695]
[1761479266499,0.4595,4034.2,4031.7,0.50688]
[1761479266897,0.4595,4034.2,4031.9,0.50688]
[1761479267602,0.4595,4034.2,4031.9,0.4695]
[1761479268195,0.2177,4034.3,4031.9,0.4695]
[1761479268196,0.001,4033.8,4031.9,0.4695]
[1761479268575,0.001,4033.8,4032.0,0.02480158]
[1761479268909,0.001,4033.8,4031.9,0.4695]
[1761479269993,0.001,4033.8,4032.0,0.02480158]
[1761479270376,0.001,4033.8,4032.2,0.50688]
[1761479270577,0.001,4033.8,4032.2,0.53168035]
[1761479270779,0.001,4033.8,4032.4,0.50688]
[1761479270979,0.001,4033.8,4032.5,0.02479851]
[1761479271196,0.001,4033.8,4032.6,0.50688]
[1761479271603,0.001,4033.8,4032.7,0.4695]
[1761479271801,0.001,4033.8,4032.8,0.50688]
[1761479272217,0.001,4033.8,4032.8,0.4695]
[1761479273552,0.001,4033.8,4032.2,0.50688]
[1761479273686,0.001,4033.8,4032.6,0.124]
[1761479273687,0.124,4033.2,4032.6,0.124]
[1761479273883,0.4595,4033.7,4031.3,0.002]
[1761479274095,0.6772,4033.6,4031.3,0.002]
[1761479274416,0.4595,4033.5,4031.4,0.4695]
[1761479274602,0.4595,4033.5,4031.3,0.002]
[1761479278528,0.4595,4033.5,4031.5,0.50688]
[1761479279909,0.4595,4033.5,4031.7,0.50688]
[1761479280110,0.2177,4033.6,4031.7,0.50688]
[1761479280111,0.2177,4033.6,4031.8,0.02480281]
[1761479280344,0.2177,4033.6,4031.9,0.50688]
[1761479280507,0.001,4033.8,4031.9,0.50688]
[1761479280706,0.001,4033.8,4031.3,0.002]
[1761479280707,0.001,4033.8,4032.1,0.50688]
[1761479280910,0.001,4033.8,4032.2,0.02480035]
[1761479281254,0.001,4033.8,4032.3,0.50688]
[1761479281395,0.001,4033.8,4032.5,0.50688]
[1761479281596,0.001,4033.8,4032.7,0.50688]
[1761479282009,0.001,4033.8,4032.9,0.50688]
[1761479282549,0.001,4033.8,4033.1,0.50688]
[1761479282903,0.001,4033.8,4033.3,0.50688]
[1761479283141,0.001,4033.8,4033.5,0.50688]
[1761479283311,0.001,4033.8,4033.5,0.653686]
[1761479283510,0.001,4033.8,4032.2,0.1633]
[1761479283731,0.001,4033.8,4032.2,0.6176]
[1761479283949,0.001,4033.8,4032.9,0.124]
[1761479284155,0.001,4033.8,4033.0,0.50688]
[1761479284156,0.124,4033.7,4033.0,0.50688]
[1761479284452,0.001,4033.8,4033.4,0.124]
[1761479285672,0.001,4033.8,4033.5,0.96118]
[1761479285865,0.001,4033.8,4032.2,0.1633]
[1761479285866,0.001,4033.8,4033.7,0.63088]
[1761479288462,0.001,4033.8,4033.7,0.95338]
[1761479288961,0.001,4033.8,4033.7,0.50688]
[1761479289253,0.001,4033.8,4033.7,0.95338]
[1761479290231,0.001,4033.8,4033.7,0.50688]
[1761479290865,0.001,4033.8,4032.8,0.4465]
[1761479291265,0.001,4033.8,4032.8,0.20017]
[1761479291449,0.001,4033.8,4032.6,0.4465]
[1761479291651,0.001,4033.8,4032.5,0.4465]
[1761479291958,0.001,4033.8,4032.6,0.4465]
[1761479292167,0.001,4033.8,4032.7,0.50688]
[1761479292665,0.001,4033.8,4032.9,0.50688]
[1761479293127,0.001,4033.8,4033.1,0.50688]
[1761479293672,0.001,4033.8,4033.3,0.50688]
[1761479294128,0.001,4033.8,4033.5,0.50688]
[1761479294528,0.001,4033.8,4033.5,0.4465]
[1761479296257,0.001,4033.8,4032.8,0.4465]
[1761479296561,0.001,4033.8,4033.0,0.50688]
[1761479296766,0.001,4033.8,4033.2,2.06208]
[1761479297060,0.001,4033.8,4033.4,0.50688]
[1761479297561,0.001,4033.8,4033.6,0.50688]
[1761479298069,0.001,4033.8,4033.3,0.4465]
[1761479298363,0.001,4033.8,4033.4,0.50688]
[1761479298531,0.001,4033.8,4033.7,0.63088]
[1761479299705,0.001,4033.8,4033.7,0.124]
[1761479299904,0.001,4033.8,4033.5,0.009309]
[1761479300403,0.4659,4033.7,4033.5,0.009309]
[1761479307224,0.4669,4033.7,4033.5,0.009309]
[1761479307528,0.4669,4033.7,4032.6,0.002]
[1761479307529,2.609,4033.4,4032.6,0.002]
[1761479307729,2.609,4033.4,4031.7,0.002]
[1761479307730,0.88324585,4032.7,4031.7,0.002]
[1761479307917,0.88324585,4032.7,4031.0,0.002]
[1761479307918,0.2197,4031.8,4031.0,0.002]
[1761479308306,0.4659,4031.7,4031.0,0.002]
[1761479309804,0.124,4031.4,4031.0,0.002]
[1761479310335,0.5899,4031.4,4031.0,0.002]
[1761479312137,0.4659,4031.4,4031.0,0.002]
[1761479314080,1.5552,4032.5,4031.0,0.002]
[1761479314081,0.2197,4032.1,4031.2,0.50688]
[1761479314296,0.2197,4032.1,4031.0,0.002]
[1761479314437,0.4659,4032.0,4031.0,0.002]
[1761479316871,0.2197,4032.1,4031.0,0.002]
[1761479317170,0.2197,4032.3,4031.0,0.002]
[1761479317682,1.488,4029.2,4024.9,0.146]
[1761479317879,0.66561056,4028.4,4025.1,0.55988913]
[1761479318182,2.609,4028.2,4024.9,0.146]
[1761479318381,0.2197,4025.0,4024.6,0.02484718]
[1761479318565,0.2197,4026.1,4022.7,0.146]
[1761479318764,0.4535,4026.0,4022.7,0.438]
[1761479319240,2.0087,4026.0,4022.8,0.292]
[1761479319668,0.4535,4025.9,4022.8,0.292]
[1761479319867,0.4535,4025.9,4022.9,0.02485768]
[1761479320380,0.4535,4025.9,4023.0,0.292]
[1761479320677,0.4535,4025.9,4022.7,0.146]
[1761479320878,1.5552,4025.8,4022.8,0.3168583]
[1761479321063,0.4535,4025.7,4022.8,0.3168583]
[1761479321240,0.4535,4025.7,4022.8,0.292]
[1761479322177,0.124,4024.1,4023.5,0.124]
[1761479322375,0.4535,4025.7,4022.8,0.3168583]
[1761479322677,0.23095196,4026.9,4022.8,0.3168583]
[1761479322678,0.4535,4026.9,4025.6,0.146]
[1761479322977,0.4535,4026.9,4022.8,0.292]
[1761479323276,0.4535,4026.9,4022.9,0.292]
[1761479323478,0.4535,4026.9,4022.9,0.31685768]
[1761479323675,0.2197,4027.4,4022.9,0.31685768]
[1761479323881,0.4535,4027.3,4022.9,0.31685768]
[1761479325011,0.2197,4028.3,4023.2,0.09999998]
[1761479325189,0.2197,4028.3,4023.3,0.02485521]
[1761479325486,0.6732,4028.3,4023.3,0.69090518]
[1761479325845,0.6732,4028.3,4023.4,0.54051512]
[1761479326046,0.6732,4028.3,4023.6,0.24850894]
[1761479326243,0.6732,4028.3,4023.8,0.24850894]
[1761479326483,0.6732,4028.3,4024.0,0.24850894]
[1761479326682,0.4535,4028.2,4024.1,0.02485027]
[1761479326855,0.4535,4028.2,4024.2,0.02484965]
[1761479327254,0.4535,4028.2,4024.3,0.292]
[1761479327877,0.4535,4028.2,4024.4,0.02484842]
[1761479328086,0.4535,4028.2,4024.4,0.53172842]
[1761479328249,0.4535,4028.2,4024.6,0.50688]
[1761479328448,0.3783,4028.2,4024.8,0.50688]
[1761479328684,0.3783,4028.2,4025.0,0.50688]
[1761479329112,0.3783,4028.2,4025.2,0.50688]
[1761479329298,0.3783,4028.2,4025.4,0.50688]
[1761479329698,0.3783,4028.2,4025.6,0.50688]
[1761479329901,0.3783,4028.2,4025.8,0.50688]
[1761479330289,0.3783,4028.2,4026.0,0.50688]
[1761479330917,0.3783,4028.2,4026.0,0.3672]
[1761479331410,0.90037698,4028.2,4026.0,0.3672]
[1761479331598,0.3783,4028.2,4026.1,0.02483793]
[1761479331913,0.6732,4028.3,4026.0,0.3672]
[1761479332100,2.609,4028.2,4026.0,0.3672]
[1761479332303,0.2197,4028.3,4026.0,0.3672]
[1761479332908,0.124,4027.8,4027.4,0.50688]
[1761479333088,0.124,4028.0,4027.6,0.50688]
[1761479333690,0.2301,4028.7,4027.5,0.146]
[1761479333691,0.52444117,4028.5,4028.0,0.50688]
[1761479334017,0.52444117,4028.5,4027.5,0.146]
[1761479334018,2.25695218,4030.5,4027.5,0.146]
[1761479334019,1.32109063,4030.9,4029.1,0.50688]
[1761479334191,1.99155135,4031.4,4029.2,0.02481882]
[1761479334192,0.2301,4031.4,4029.2,0.02481882]
[1761479334391,0.2301,4031.4,4029.4,0.50688]
[1761479334902,0.2301,4031.4,4029.6,0.50688]
[1761479335213,0.4535,4031.2,4029.0,0.0752]
[1761479335428,0.4535,4031.2,4029.1,0.50688]
[1761479335796,0.4535,4031.2,4028.7,0.0752]
[1761479335797,0.4535,4031.2,4028.8,0.50688]
[1761479336701,0.4535,4031.2,4028.8,0.87408]
[1761479338340,0.4535,4031.2,4028.8,0.50688]
[1761479340862,0.2301,4028.9,4026.0,0.3672]
[1761479341057,0.2301,4028.9,4026.6,0.3672]
[1761479341458,0.4535,4028.8,4026.6,0.3672]
[1761479341661,0.4535,4028.8,4025.9,0.3672]
[1761479341819,0.4535,4028.8,4025.4,0.38845227]
[1761479341820,0.4535,4028.8,4025.4,0.3672]
[1761479342332,0.4535,4028.8,4025.5,0.02484163]
[1761479342539,0.4535,4028.8,4025.9,0.3672]
[1761479343168,0.4535,4028.8,4026.0,0.002]
[1761479343356,0.4535,4028.8,4026.2,0.87408]
[1761479343668,0.4535,4028.8,4026.2,0.50688]
[1761479343869,0.124,4028.0,4027.6,0.50688]
[1761479344071,0.124,4028.4,4027.9,0.50688]
[1761479344637,0.2301,4028.9,4026.0,0.002]
[1761479344638,0.4553,4028.3,4026.2,0.50688]
[1761479344968,0.4553,4028.3,4026.1,0.5132]
[1761479345283,0.4553,4028.3,4026.0,0.002]
[1761479345984,0.52815346,4028.2,4026.0,0.002]
[1761479346138,0.4553,4028.3,4026.0,0.002]
[1761479346139,0.52815346,4028.1,4026.0,0.002]
[1761479346474,0.52815346,4028.6,4026.2,0.50688]
[1761479346632,0.52815346,4028.5,4026.3,0.02483669]
[1761479346837,0.52815346,4028.6,4026.4,0.50688]
[1761479347045,0.4553,4028.7,4026.4,0.50688]
[1761479347270,0.52815346,4028.6,4026.6,0.50688]
[1761479347440,0.52815346,4028.6,4026.7,0.02483423]
[1761479347645,0.52815346,4028.8,4026.8,0.50688]
[1761479347851,0.52815346,4029.5,4028.6,0.50688]
[1761479348044,0.52815346,4029.4,4028.6,0.50688]
[1761479348254,0.52815346,4029.8,4028.6,0.50688]
[1761479348482,0.52815346,4029.7,4028.6,0.50688]
[1761479348685,0.52815346,4029.6,4028.6,0.50688]
[1761479348844,0.52815346,4029.8,4028.6,0.50688]
[1761479349050,0.52815346,4029.7,4028.6,0.50688]
[1761479349270,0.52815346,4029.6,4028.6,0.50688]
[1761479349462,0.52815346,4029.5,4028.6,0.50688]
[1761479349671,1.32109063,4030.5,4028.7,0.0248219]
[1761479349875,0.52914926,4030.4,4028.8,0.53170128]
[1761479350072,0.52914926,4031.0,4028.8,0.50688]
[1761479350273,0.52914926,4031.0,4028.5,0.146]
[1761479350274,1.32109063,4030.6,4028.5,0.146]
[1761479350449,0.52914926,4030.5,4028.6,0.3672]
[1761479350648,0.52914926,4030.4,4028.6,0.50688]
[1761479350969,0.52914926,4030.3,4028.6,0.50688]
[1761479351336,1.32109063,4031.0,4028.8,0.50688]
[1761479351337,0.52914926,4030.2,4028.8,0.50688]
[1761479351588,0.99424926,4030.9,4028.8,0.50688]
[1761479351797,0.52914926,4030.8,4028.8,0.50688]
[1761479351996,0.52914926,4030.7,4028.8,0.50688]
[1761479352195,0.52914926,4030.6,4028.8,0.50688]
[1761479352404,0.99424926,4030.5,4028.8,0.50688]
[1761479352551,0.52914926,4030.4,4028.9,0.3672]
[1761479352756,0.53039531,4031.1,4029.0,0.53170005]
[1761479352983,0.53039531,4031.0,4029.0,0.50688]
[1761479353184,0.53039531,4030.9,4029.2,0.50688]
[1761479353354,0.4651,4031.1,4029.4,0.50688]
[1761479353661,0.53041423,4031.0,4029.4,0.50688]
[1761479353852,0.53041423,4030.9,4029.6,0.50688]
[1761479354051,0.5303924,4031.1,4029.6,0.50688]
[1761479354251,0.001,4031.2,4028.6,0.50688]
[1761479354485,0.001,4031.2,4029.6,0.3672]